bitfinex/quotes_SOLUSD_20260108
["timestamp","ask_amount","ask_price","bid_price","bid_amount"]
[1767854331332,3.94877118,135.54,135.49,4.17171404]
[1767854331528,10.97296521,135.53,135.49,0.67976726]
[1767854331739,10.97296521,135.53,135.48,0.67976726]
[1767854331740,3.94522872,135.52,135.48,0.67976726]
[1767854331927,0.44980997,135.5,135.45,7.38235148]
[1767854332134,0.44980997,135.5,135.46,3.49194678]
[1767854332320,0.44980997,135.5,135.45,8.06211874]
[1767854332523,0.44980997,135.5,135.46,4.17171404]
[1767854332726,3.49194678,135.51,135.47,0.67976726]
[1767854333141,10.87147596,135.51,135.47,0.67976726]
[1767854336441,7.37952918,135.51,135.47,0.67976726]
[1767854336634,10.87147596,135.51,135.47,0.67976726]
[1767854338853,0.10257824,135.49,135.43,0.67976726]
[1767854339048,3.49194678,135.47,135.43,0.67976726]
[1767854339233,3.49194678,135.47,135.44,0.67976726]
[1767854339842,0.45328194,135.48,135.44,0.67976726]
[1767854340045,4.22955186,135.48,135.44,0.67976726]
[1767854340629,3.49194678,135.47,135.44,0.67976726]
[1767854340851,7.38225306,135.46,135.43,4.17171404]
[1767854341158,7.38225306,135.46,135.43,0.67976726]
[1767854341648,7.38192897,135.47,135.44,0.67976726]
[1767854342536,7.38125819,135.48,135.44,0.67976726]
[1767854342738,7.38125819,135.48,135.45,0.67495026]
[1767854343140,7.48025819,135.48,135.44,3.49194678]
[1767854343346,7.48025819,135.48,135.43,4.16689704]
[1767854343546,10.97220497,135.48,135.43,0.67495026]
[1767854343750,10.97220497,135.48,135.43,4.16689704]
[1767854344356,10.97220497,135.48,135.44,0.67495026]
[1767854345141,7.48025819,135.48,135.44,4.16689704]
[1767854345446,10.97220497,135.48,135.44,4.16689704]
[1767854346647,7.48025819,135.48,135.44,4.16689704]
[1767854347744,10.97220497,135.48,135.44,0.67495026]
[1767854348262,7.48025819,135.48,135.44,0.67495026]
[1767854348564,10.97220497,135.48,135.44,0.67495026]
[1767854348868,3.94877118,135.47,135.42,11.55109045]
[1767854349164,3.91877119,135.47,135.43,0.67495026]
[1767854349661,3.49194678,135.47,135.43,0.67495026]
[1767854350059,7.38125819,135.48,135.43,4.16689704]
[1767854350266,10.87320497,135.48,135.44,0.67495026]
[1767854350645,9.61631313,135.48,135.44,0.67495026]
[1767854351047,0.42387598,135.44,135.4,0.71007126]
[1767854351248,13.9104388,135.47,135.43,2.9451262]
[1767854351453,13.48,135.47,135.43,2.9451262]
[1767854351642,13.48,135.47,135.44,2.9451262]
[1767854352651,20.86203095,135.47,135.44,2.9451262]
[1767854352851,7.38203095,135.47,135.44,2.9451262]
[1767854356168,0.42712441,135.47,135.44,2.13174055]
[1767854356378,0.42712441,135.47,135.44,2.23505494]
[1767854356570,7.70828768,135.48,135.44,2.9451262]
[1767854356959,7.70828768,135.48,135.44,0.71007126]
[1767854357158,7.70828768,135.48,135.44,2.9451262]
[1767854358764,26.16119585,135.48,135.44,0.71007126]
[1767854359076,2.5598981,135.46,135.41,0.71007126]
[1767854359378,2.23505494,135.42,135.39,0.71007126]
[1767854359561,13.48,135.46,135.41,0.71007126]
[1767854359562,2.56217935,135.45,135.41,0.71007126]
[1767854360284,0.28432314,135.46,135.4,0.71007126]
[1767854360285,2.23505494,135.43,135.4,0.71007126]
[1767854360459,2.23505494,135.43,135.39,0.71007126]
[1767854361182,7.38443361,135.42,135.39,0.71007126]
[1767854361353,7.38443361,135.42,135.39,2.9451262]
[1767854361675,21.07738808,135.44,135.4,0.71007126]
[1767854361676,7.38395026,135.43,135.4,0.71007126]
[1767854361882,7.38395026,135.43,135.39,2.9451262]
[1767854362059,7.70879342,135.43,135.39,2.9451262]
[1767854362454,28.40356924,135.43,135.39,0.71007126]
[1767854364568,0.10125843,135.42,135.38,2.9451262]
[1767854365755,2.33631337,135.42,135.38,0.71007126]
[1767854366079,0.10125843,135.42,135.38,2.9451262]
[1767854367000,0.10125843,135.42,135.38,0.71007126]
[1767854367164,2.33631337,135.42,135.38,0.71007126]
[1767854368489,9.72118311,135.42,135.38,0.71007126]
[1767854369181,2.55547091,135.39,135.35,0.71007126]
[1767854369382,2.23505494,135.38,135.35,0.71007126]
[1767854369778,2.55547091,135.39,135.35,0.71007126]
[1767854369983,2.23505494,135.38,135.35,0.71007126]
[1767854370368,0.32041597,135.39,135.35,0.71007126]
[1767854370369,9.62149783,135.39,135.35,0.71007126]
[1767854370559,2.23505494,135.38,135.35,0.71007126]
[1767854371186,2.23505494,135.37,135.34,0.71007126]
[1767854371789,0.32484316,135.38,135.34,0.71007126]
[1767854371790,2.5598981,135.38,135.34,0.71007126]
[1767854372090,2.23505494,135.38,135.34,0.71007126]
[1767854372479,9.62197435,135.38,135.34,0.71007126]
[1767854373688,9.62236815,135.37,135.34,0.71007126]
[1767854374475,9.72362658,135.37,135.33,0.87596233]
[1767854374683,2.23505494,135.35,135.33,0.2]
[1767854375188,2.23505494,135.34,135.32,0.2]
[1767854375394,2.33852685,135.35,135.32,0.2]
[1767854375768,7.38825267,135.35,135.32,0.2]
[1767854375966,0.099,135.35,135.32,0.2]
[1767854376376,9.62297431,135.36,135.33,0.67596233]
[1767854376794,0.099,135.35,135.32,0.2]
[1767854377299,9.95009872,135.36,135.32,0.87596233]
[1767854377503,7.71504378,135.36,135.32,0.87596233]
[1767854377874,7.38791937,135.36,135.33,0.67596233]
[1767854379005,9.62297431,135.36,135.33,0.67596233]
[1767854381002,2.23505494,135.38,135.34,0.67596233]
[1767854381500,9.62112481,135.39,135.34,0.67596233]
[1767854382281,7.38606987,135.39,135.34,2.91101727]
[1767854382484,7.38497895,135.41,135.38,0.67596233]
[1767854383607,9.62003389,135.41,135.38,0.67596233]
[1767854384289,7.38497895,135.41,135.38,0.67596233]
[1767854384603,9.62003389,135.41,135.38,0.67596233]
[1767854384802,7.38497895,135.41,135.38,0.67596233]
[1767854384994,9.62003389,135.41,135.38,0.67596233]
[1767854385194,7.38497895,135.41,135.38,0.67596233]
[1767854386504,110.38457354,135.42,135.4,0.67596233]
[1767854386801,7.38457354,135.42,135.4,0.67596233]
[1767854387906,7.38457354,135.42,135.38,2.23505494]
[1767854389696,7.38457354,135.42,135.36,7.38752116]
[1767854389892,7.38457354,135.42,135.39,0.67596233]
[1767854391308,2.89705032,135.41,135.38,0.67596233]
[1767854392405,10.28250743,135.41,135.38,0.67596233]
[1767854393005,8.04745249,135.41,135.38,0.67596233]
[1767854393206,10.28250743,135.41,135.38,0.67596233]
[1767854394002,8.04745249,135.41,135.38,0.67596233]
[1767854394515,0.66199538,135.41,135.38,0.67596233]
[1767854394706,10.28241213,135.41,135.38,0.67596233]
[1767854400230,10.28241213,135.41,135.37,0.67596233]
[1767854401716,7.38536181,135.41,135.37,0.67596233]
[1767854402023,7.81976634,135.41,135.37,0.67596233]
[1767854402215,10.05482128,135.41,135.37,0.67596233]
[1767854402819,7.81976634,135.41,135.37,0.67596233]
[1767854403910,0.66199538,135.4,135.33,0.66232054]
[1767854404229,2.23505494,135.37,135.33,0.66232054]
[1767854404408,9.62253065,135.37,135.33,0.66232054]
[1767854405029,28.09043343,135.37,135.33,0.66232054]
[1767854408231,25.85537849,135.37,135.33,0.66232054]
[1767854408728,7.38747571,135.37,135.34,0.66232054]
[1767854413139,3.49701183,135.4,135.36,0.67370278]
[1767854413431,3.93470612,135.4,135.36,0.67370278]
[1767854414007,10.88317047,135.39,135.36,0.67370278]
[1767854414229,11.54190899,135.39,135.36,0.67370278]
[1767854414537,0.43990473,135.38,135.34,10.88565865]
[1767854414828,0.65655018,135.37,135.33,4.17071461]
[1767854415007,0.65655018,135.37,135.33,3.49701183]
[1767854415205,11.32166233,135.38,135.34,0.67370278]
[1767854419445,3.49701183,135.36,135.33,0.67370278]
[1767854419750,3.93470612,135.36,135.32,0.87370278]
[1767854420122,25.85349484,135.38,135.32,0.87370278]
[1767854420123,3.49701183,135.34,135.32,0.87370278]
[1767854420635,10.88606477,135.34,135.32,0.87370278]
[1767854420833,7.38905294,135.34,135.32,0.87370278]
[1767854422523,11.3259695,135.34,135.31,0.2]
[1767854422927,29.79796595,135.34,135.31,0.2]
[1767854424748,0.14216157,135.36,135.31,0.2]
[1767854424749,11.54646072,135.35,135.31,0.87370278]
[1767854425236,25.85910929,135.35,135.32,0.67370278]
[1767854425836,7.3884776,135.35,135.32,0.67370278]
[1767854426230,7.82617189,135.35,135.32,0.67370278]
[1767854426446,0.65873852,135.34,135.31,3.69701183]
[1767854426630,0.43990473,135.33,135.31,3.69701183]
[1767854426833,7.38882357,135.34,135.32,0.67370278]
[1767854427059,7.38882357,135.34,135.31,0.87370278]
[1767854427423,7.38882357,135.34,135.32,0.67370278]
[1767854427743,10.88547876,135.35,135.32,0.67370278]
[1767854427921,7.38846693,135.35,135.32,0.67370278]
[1767854428121,7.38846693,135.35,135.32,0.17370278]
[1767854428533,8.04943822,135.35,135.32,0.17370278]
[1767854429533,7.38846693,135.35,135.32,0.17370278]
[1767854430326,8.04943822,135.35,135.32,0.17370278]
[1767854433756,11.54645005,135.35,135.32,0.17370278]
[1767854435652,7.38846693,135.35,135.32,0.17370278]
[1767854435857,7.38846693,135.35,135.31,0.2]
[1767854435858,0.70970842,135.39,135.35,0.66384339]
[1767854436058,0.99403156,135.39,135.35,4.16085522]
[1767854436251,0.70970842,135.39,135.35,4.16085522]
[1767854437271,7.38661545,135.38,135.35,4.16085522]
[1767854437439,8.09598411,135.39,135.36,0.66384339]
[1767854438262,8.09598411,135.39,135.36,0.60384339]
[1767854438658,8.09523279,135.4,135.36,0.60384339]
[1767854439159,11.59224462,135.4,135.36,0.60384339]
[1767854442165,8.09523279,135.4,135.37,0.66384339]
[1767854442367,8.09523279,135.4,135.37,0.60384339]
[1767854442559,8.09523279,135.4,135.37,0.54384339]
[1767854443274,8.09523279,135.4,135.37,4.04085522]
[1767854443479,8.09523279,135.4,135.37,3.49701183]
[1767854443968,8.09523279,135.4,135.36,3.49701183]
[1767854444169,8.09523279,135.4,135.28,0.2]
[1767854444170,0.73668826,135.36,135.28,0.2]
[1767854444382,0.73668826,135.36,135.33,3.49701183]
[1767854444577,0.02697984,135.36,135.33,4.16085522]
[1767854444784,0.02697984,135.36,135.34,0.66384339]
[1767854444968,0.02697984,135.36,135.34,0.63082323]
[1767854445161,0.02697984,135.36,135.34,4.12783506]
[1767854445777,0.02697984,135.36,135.34,0.63082323]
[1767854448094,7.38716111,135.37,135.34,0.54384339]
[1767854448967,8.09650285,135.38,135.34,3.49701183]
[1767854450092,8.09650285,135.38,135.34,4.16085522]
[1767854451787,0.70970842,135.38,135.35,0.66384339]
[1767854451979,8.09613754,135.39,135.36,3.49701183]
[1767854452169,0.70970842,135.37,135.35,3.49701183]
[1767854453684,0.61230738,135.37,135.35,3.49701183]
[1767854454898,7.38662527,135.38,135.35,3.49701183]
[1767854455188,7.38603194,135.4,135.36,0.66384339]
[1767854455398,4.88617963,135.39,135.36,4.16085522]
[1767854455900,8.09574036,135.4,135.36,4.16085522]
[1767854456485,8.09574036,135.4,135.36,4.10085522]
[1767854457890,7.38603194,135.4,135.36,3.49701183]
[1767854458359,7.38603194,135.4,135.35,7.38810332]
[1767854458565,7.38603194,135.4,135.36,4.16085522]
[1767854458790,8.09574036,135.4,135.36,4.16085522]
[1767854460195,7.38603194,135.4,135.37,0.66384339]
[1767854460699,8.09574036,135.4,135.37,0.66384339]
[1767854461494,0.70970842,135.42,135.38,0.66384339]
[1767854461800,0.70970842,135.42,135.37,3.49701183]
[1767854461801,4.88538359,135.42,135.39,3.49701183]
[1767854461986,0.70970842,135.43,135.39,3.49701183]
[1767854462593,12.97923106,135.43,135.39,3.49701183]
[1767854462897,4.88540688,135.42,135.39,3.49701183]
[1767854463474,0.69002316,135.41,135.37,3.49701183]
[1767854463789,0.69002316,135.41,135.37,4.15459091]
[1767854464381,0.69002316,135.4,135.36,3.49701183]
[1767854464601,8.07594962,135.4,135.36,4.15459091]
[1767854466469,7.38592646,135.4,135.37,0.65757908]
[1767854467101,8.07594962,135.4,135.36,4.15459091]
[1767854468513,8.07594962,135.4,135.37,0.65757908]
[1767854470229,8.07594962,135.4,135.37,4.15459091]
[1767854470532,8.07594962,135.4,135.37,2.8945378]
[1767854470728,0.69002316,135.39,135.37,2.23695872]
[1767854471315,7.38592646,135.4,135.37,2.8945378]
[1767854471735,8.07594962,135.4,135.37,2.8945378]
[1767854476932,0.69002316,135.39,135.35,2.8945378]
[1767854479548,8.07628968,135.39,135.35,2.8945378]
[1767854480256,8.07628968,135.39,135.36,2.23695872]
[1767854481671,8.07628968,135.39,135.31,0.85757908]
[1767854481672,13.48,135.38,135.31,0.85757908]
[1767854481832,4.88731393,135.37,135.34,2.8945378]
[1767854482032,13.48,135.38,135.35,0.65757908]
[1767854482252,14.17002316,135.38,135.34,2.23695872]
[1767854482943,0.69002316,135.38,135.34,2.23695872]
[1767854483144,7.38716111,135.37,135.34,2.23695872]
[1767854484164,7.38716111,135.37,135.33,2.8945378]
[1767854485454,7.38716111,135.37,135.34,0.65757908]
[1767854486339,7.3867074,135.38,135.36,0.65757908]
[1767854486545,19.15401247,135.4,135.36,0.65757908]
[1767854486756,4.88742957,135.39,135.36,0.65757908]
[1767854487462,12.27359263,135.39,135.36,0.65757908]
[1767854487667,4.88742957,135.38,135.36,0.65757908]
[1767854489164,7.38616306,135.39,135.36,0.65757908]
[1767854489837,0.69002316,135.4,135.36,0.65757908]
[1767854490039,12.96357281,135.4,135.37,0.65757908]
[1767854490238,7.3836673,135.44,135.39,2.23695872]
[1767854490452,8.07187844,135.44,135.4,2.23695872]
[1767854490877,0.69002316,135.46,135.41,2.23695872]
[1767854491039,5.5797645,135.46,135.42,2.23695872]
[1767854491649,5.5797645,135.46,135.41,2.23695872]
[1767854491847,12.96225759,135.46,135.41,2.23695872]
[1767854492048,4.88974134,135.45,135.42,2.23695872]
[1767854492252,4.88974134,135.45,135.42,2.93187533]
[1767854492961,8.07251625,135.46,135.42,2.93187533]
[1767854495774,0.69002316,135.46,135.42,8.07929221]
[1767854495980,4.88352778,135.46,135.43,0.69491661]
[1767854496155,103.0,135.47,135.44,0.69491661]
[1767854496481,103.0,135.47,135.44,2.93187533]
[1767854496695,7.89720323,135.48,135.44,0.69491661]
[1767854496979,4.88218506,135.47,135.44,0.69491661]
[1767854497277,10.13416195,135.48,135.44,0.69491661]
[1767854498069,10.13416195,135.48,135.43,2.23695872]
[1767854498070,0.69497884,135.47,135.43,2.23695872]
[1767854500072,7.38124398,135.48,135.44,0.69491661]
[1767854500660,8.0780311,135.48,135.44,0.69491661]
[1767854501558,0.69678712,135.48,135.45,0.69491661]
[1767854501761,8.07749672,135.49,135.45,0.69491661]
[1767854502174,8.07749672,135.49,135.45,2.93187533]
[1767854502865,8.07749672,135.49,135.45,0.69491661]
[1767854503069,8.07749672,135.49,135.45,2.93187533]
[1767854503469,10.31445544,135.49,135.45,0.69491661]
[1767854503678,10.31445544,135.49,135.45,0.63491661]
[1767854503858,10.31445544,135.49,135.44,2.23695872]
[1767854503859,0.63475925,135.48,135.42,9.62097302]
[1767854504188,6.20914,135.53,135.45,32.51962226]
[1767854504363,8.17433429,135.53,135.49,2.23695872]
[1767854504556,8.17433429,135.53,135.48,2.23695872]
[1767854504786,21.65433429,135.53,135.48,2.23695872]
[1767854505289,23.89129301,135.53,135.48,2.23695872]
[1767854505786,23.89129301,135.53,135.48,2.93187533]
[1767854505979,23.89129301,135.53,135.48,10.31293068]
[1767854506154,21.65433429,135.53,135.49,2.23695872]
[1767854506985,21.65401505,135.53,135.49,2.23695872]
[1767854507484,21.65401505,135.53,135.5,2.23695872]
[1767854508561,14.27555891,135.53,135.5,2.23695872]
[1767854509167,14.27555891,135.53,135.51,2.23695872]
[1767854509560,0.79555891,135.53,135.51,2.23695872]
[1767854510094,14.07555891,135.52,135.51,1.49455955]
[1767854510391,0.1,135.53,135.51,1.49455955]
[1767854511204,0.1,135.53,135.51,2.18947616]
[1767854511558,0.1,135.53,135.49,2.93187533]
[1767854512360,0.1,135.53,135.5,2.23695872]
[1767854513489,28.44582254,135.53,135.49,0.69491661]
[1767854514899,0.1,135.53,135.5,0.69491661]
[1767854515063,13.58,135.53,135.5,0.69491661]
[1767854516157,0.1,135.53,135.5,0.69491661]
[1767854519159,2.33695872,135.53,135.5,0.69491661]
[1767854521782,7.37898465,135.52,135.5,0.69491661]
[1767854522569,7.37898465,135.52,135.48,2.23695872]
[1767854524587,7.37898465,135.52,135.47,2.23695872]
[1767854524794,2.23695872,135.5,135.47,0.66006451]
[1767854525567,9.61828213,135.48,135.45,0.66006451]
[1767854526093,7.38132341,135.48,135.45,0.66006451]
[1767854526975,9.61783188,135.49,135.45,0.66006451]
[1767854528776,2.23695872,135.48,135.45,0.66006451]
[1767854529971,9.61814388,135.48,135.45,0.66006451]
[1767854532499,7.38061849,135.49,135.45,0.66006451]
[1767854532674,3.49183663,135.48,135.45,0.66006451]
[1767854534499,10.87326188,135.48,135.45,0.66006451]
[1767854536491,25.83216472,135.49,135.45,0.66006451]
[1767854536691,8.37396353,135.48,135.45,0.66006451]
[1767854537007,3.49183663,135.48,135.45,0.66006451]
[1767854539209,25.83216472,135.49,135.45,0.66006451]
[1767854539385,16.97183663,135.49,135.45,0.66006451]
[1767854540706,7.38116327,135.48,135.45,0.66006451]
[1767854548011,18.44773407,135.52,135.47,0.65809679]
[1767854548215,4.88825556,135.51,135.48,0.65809679]
[1767854548885,4.88825556,135.51,135.49,0.65809679]
[1767854549107,7.37898465,135.52,135.5,0.65809679]
[1767854550208,7.47844019,135.53,135.5,0.65809679]
[1767854550516,4.89015365,135.52,135.5,0.65809679]
[1767854551013,12.26935256,135.52,135.5,0.65809679]
[1767854551211,0.1,135.53,135.49,0.65809679]
[1767854551515,15.86097334,135.53,135.48,4.14993342]
[1767854551698,10.9705705,135.53,135.48,4.14993342]
[1767854553104,3.59183663,135.53,135.48,4.14993342]
[1767854554414,3.59183663,135.53,135.49,0.7246393]
[1767854554415,7.37898465,135.52,135.49,0.7246393]
[1767854555407,10.97050928,135.53,135.49,0.7246393]
[1767854557427,7.47867265,135.53,135.5,0.7246393]
[1767854557715,10.97050928,135.53,135.5,0.7246393]
[1767854557922,10.97050928,135.53,135.5,0.6646393]
[1767854558216,3.49183663,135.52,135.46,20.86212602]
[1767854558455,3.49183663,135.52,135.47,3.49183663]
[1767854559421,7.37952918,135.51,135.47,3.49183663]
[1767854560022,7.37952918,135.51,135.48,0.7246393]
[1767854561219,18.54610049,135.53,135.48,0.7246393]
[1767854561417,4.89144108,135.52,135.48,0.7246393]
[1767854562824,4.89144108,135.52,135.49,0.7246393]
[1767854563031,18.54610049,135.53,135.49,0.7246393]
[1767854564029,25.92454068,135.53,135.49,0.7246393]
[1767854565029,29.41637731,135.53,135.49,0.7246393]
[1767854565943,18.54610049,135.53,135.49,0.7246393]
[1767854567130,25.94454068,135.53,135.49,0.6646393]
[1767854568732,29.43637731,135.53,135.49,0.6646393]
[1767854569332,25.94454068,135.53,135.49,0.6646393]
[1767854569529,29.43637731,135.53,135.49,0.6646393]
[1767854571147,25.94454068,135.53,135.49,0.6646393]
[1767854571325,29.43637731,135.53,135.49,0.6646393]
[1767854571932,29.43637731,135.53,135.49,0.6046393]
[1767854577930,12.26979822,135.52,135.49,0.6046393]
[1767854578128,7.37930527,135.52,135.49,0.6046393]
[1767854578848,7.37930527,135.52,135.49,0.5446393]
[1767854582449,3.63142663,135.5,135.47,0.6917783]
[1767854582619,3.63183663,135.5,135.47,0.6917783]
[1767854582939,3.49183663,135.5,135.47,0.6917783]
[1767854583141,3.59083663,135.51,135.47,0.6917783]
[1767854583457,7.3800738,135.5,135.47,0.6917783]
[1767854586941,7.4786529,135.53,135.5,0.6917783]
[1767854587137,4.89583836,135.52,135.5,0.5717783]
[1767854587320,4.89583836,135.52,135.5,0.5117783]
[1767854588138,4.89583836,135.52,135.5,0.4517783]
[1767854588931,7.4786529,135.53,135.5,0.4517783]
[1767854591527,10.97048953,135.53,135.5,0.4517783]
[1767854592241,4.8996336,135.52,135.5,0.4517783]
[1767854593044,7.4786529,135.53,135.5,0.4517783]
[1767854593346,4.89996139,135.52,135.5,0.4517783]
[1767854594052,7.4786529,135.53,135.5,0.4517783]
[1767854596035,12.27890889,135.52,135.5,0.4517783]
[1767854596234,7.37903464,135.52,135.5,0.4517783]
[1767854597856,7.47844019,135.53,135.5,0.4517783]
[1767854598330,25.92454068,135.53,135.5,0.4517783]
[1767854598531,4.8992469,135.52,135.5,0.4517783]
[1767854598746,5.44828931,135.52,135.48,13.48]
[1767854598947,7.68149431,135.52,135.48,13.48]
[1767854599259,2.78224741,135.52,135.48,13.48]
[1767854600159,7.37952918,135.51,135.48,13.48]
[1767854600667,7.37952918,135.51,135.49,0.66997136]
[1767854605167,0.26793606,135.49,135.41,9.81179118]
[1767854605351,2.233205,135.5,135.42,15.713205]
[1767854605352,0.66113581,135.47,135.42,15.713205]
[1767854605671,5.5601032,135.47,135.42,15.713205]
[1767854606261,5.5601032,135.47,135.43,2.233205]
[1767854606454,5.5601032,135.47,135.43,15.713205]
[1767854606649,5.5601032,135.47,135.43,2.233205]
[1767854606854,0.66113581,135.47,135.43,15.713205]
[1767854607168,8.04335998,135.47,135.44,0.66997136]
[1767854609974,8.04335998,135.47,135.43,14.14997136]
[1767854609975,2.89434081,135.46,135.43,14.14997136]
[1767854611875,0.66113581,135.43,135.4,0.66997136]
[1767854612048,10.27841494,135.43,135.4,0.66997136]
[1767854613262,0.21452179,135.4,135.35,0.88364139]
[1767854613456,2.88881059,135.39,135.35,0.88364139]
[1767854614866,2.8588106,135.39,135.35,0.88364139]
[1767854615069,2.8588106,135.39,135.36,0.68364139]
[1767854615278,9.61950607,135.39,135.36,0.68364139]
[1767854616456,2.51752814,135.44,135.38,0.68364139]
[1767854616457,21.35357694,135.43,135.38,0.68364139]
[1767854616646,21.35357694,135.43,135.39,0.68364139]
[1767854617576,7.38443361,135.42,135.39,0.68364139]
[1767854619873,7.38410793,135.43,135.4,0.68364139]
[1767854620664,7.38410793,135.43,135.41,0.68364139]
[1767854622173,7.38334317,135.44,135.41,0.68364139]
[1767854622564,25.84170111,135.44,135.41,0.68364139]
[1767854626074,26.0562229,135.44,135.4,0.68364139]
[1767854626267,7.59786496,135.44,135.41,0.68364139]
[1767854626575,7.38334317,135.44,135.41,0.68364139]
[1767854630163,7.38301399,135.45,135.42,0.68364139]
[1767854630474,7.38301399,135.45,135.43,0.68364139]
[1767854635467,0.21452179,135.45,135.42,0.68364139]
[1767854636864,26.49860303,135.46,135.42,0.68364139]
[1767854638992,7.38225306,135.46,135.43,0.68364139]
[1767854639991,0.66006098,135.49,135.45,0.68364139]
[1767854640366,2.89326598,135.49,135.45,0.68364139]
[1767854640672,7.38132602,135.48,135.45,0.68364139]
[1767854642070,7.59584781,135.48,135.45,0.68364139]
[1767854642279,7.59584781,135.48,135.44,0.68182104]
[1767854644293,0.65560559,135.47,135.42,2.91502604]
[1767854644503,0.21893262,135.46,135.43,0.68182104]
[1767854645978,7.6014248,135.46,135.43,0.68182104]
[1767854646618,7.38249218,135.46,135.43,0.68182104]
[1767854649703,7.38142969,135.48,135.46,0.71700968]
[1767854649900,7.53665728,135.49,135.46,0.71700968]
[1767854650684,7.53665728,135.49,135.46,0.65700968]
[1767854653002,7.53665728,135.49,135.45,0.71700968]
[1767854655984,11.02791704,135.49,135.45,0.71700968]
[1767854657024,8.10084391,135.48,135.45,0.71700968]
[1767854662621,8.10020239,135.49,135.46,0.71700968]
[1767854662914,8.10020239,135.49,135.45,4.20826944]
[1767854663122,0.21524336,135.48,135.45,4.20826944]
[1767854663901,7.38118538,135.48,135.46,0.71700968]
[1767854664191,7.38118538,135.48,135.46,0.65700968]
[1767854665016,7.65534725,135.49,135.46,0.65700968]
[1767854668698,7.38070389,135.49,135.46,0.65700968]
[1767854669102,7.65534725,135.49,135.46,0.65700968]
[1767854671401,0.71488523,135.48,135.44,0.71700968]
[1767854671602,0.71488523,135.48,135.45,0.71700968]
[1767854672199,0.71488523,135.48,135.44,0.66341067]
[1767854672603,4.20614499,135.48,135.44,0.66341067]
[1767854673292,25.83225012,135.49,135.37,0.66341067]
[1767854673293,0.33127851,135.44,135.37,0.66341067]
[1767854673504,0.33127851,135.44,135.35,0.2]
[1767854673505,0.65881643,135.43,135.39,0.66341067]
[1767854673908,0.6621249,135.44,135.41,0.66341067]
[1767854674115,20.86279808,135.45,135.42,0.66341067]
[1767854674297,21.19407659,135.45,135.42,0.66341067]
[1767854675024,7.71407659,135.45,135.42,0.66341067]
[1767854677527,11.20533635,135.45,135.42,0.66341067]
[1767854678112,0.65881643,135.44,135.4,0.66341067]
[1767854678297,4.15007619,135.44,135.4,0.66341067]
[1767854678498,9.03912648,135.44,135.4,0.66341067]
[1767854678828,4.15007619,135.44,135.4,0.66341067]
[1767854681045,8.04255834,135.44,135.4,0.66341067]
[1767854683215,8.04255834,135.44,135.41,0.66341067]
[1767854683615,0.33455389,135.43,135.4,4.15467043]
[1767854683826,7.38374191,135.44,135.41,0.66341067]
[1767854684843,7.71502042,135.44,135.41,0.66341067]
[1767854686922,7.38374191,135.44,135.41,0.66341067]
[1767854689013,8.04255834,135.44,135.41,0.66341067]
[1767854689933,0.33455389,135.43,135.4,0.66341067]
[1767854691740,7.71853717,135.43,135.39,4.15467043]
[1767854692121,0.65557381,135.42,135.39,4.15467043]
[1767854692316,0.65557381,135.42,135.38,7.38636896]
[1767854692317,0.33776409,135.41,135.38,0.66341067]
[1767854695252,4.14365547,135.4,135.36,0.66341067]
[1767854695532,3.49125976,135.4,135.36,0.66341067]
[1767854696819,10.87725524,135.4,135.35,4.35467043]
[1767854697028,10.87725524,135.4,135.35,11.7427193]
[1767854697347,0.6621249,135.39,135.35,11.7427193]
[1767854697550,0.63212491,135.39,135.35,11.7427193]
[1767854699944,0.63212491,135.39,135.36,0.66341067]
[1767854701448,8.0467834,135.42,135.38,0.66341067]
[1767854701754,8.0467834,135.42,135.38,4.15467043]
[1767854702223,0.27187853,135.41,135.38,0.66341067]
[1767854703953,3.76313829,135.41,135.38,0.66341067]
[1767854704323,0.27187853,135.41,135.38,0.66341067]
[1767854706357,11.5744193,135.42,135.38,0.66341067]
[1767854707249,7.38388855,135.43,135.39,0.67381949]
[1767854707449,7.38388855,135.43,135.39,4.16507925]
[1767854707844,8.08238959,135.43,135.39,4.16507925]
[1767854709555,7.38388855,135.43,135.4,0.67381949]
[1767854710459,11.11063975,135.44,135.4,0.67381949]
[1767854710836,0.6893404,135.41,135.38,0.67381949]
[1767854712363,11.57419626,135.42,135.38,0.67381949]
[1767854712668,8.0829365,135.42,135.38,0.67381949]
[1767854713646,11.57419626,135.42,135.38,0.67381949]
[1767854714455,0.69850104,135.42,135.38,8.06031858]
[1767854715176,0.69850104,135.43,135.39,0.67381949]
[1767854715347,0.69850104,135.43,135.39,0.61381949]
[1767854717197,0.29526615,135.42,135.39,0.61381949]
[1767854718653,0.29526615,135.42,135.39,0.55381949]
[1767854718853,0.29526615,135.42,135.39,0.49381949]
[1767854719777,10.31885676,135.43,135.39,0.49381949]
[1767854721892,2.23641582,135.42,135.39,0.49381949]
[1767854723863,9.6208784,135.42,135.39,0.49381949]
[1767854724066,10.31896036,135.43,135.39,0.49381949]
[1767854724377,9.62045932,135.43,135.39,0.49381949]
[1767854724671,7.3840435,135.43,135.39,0.49381949]
[1767854724878,2.93491686,135.44,135.4,0.67381949]
[1767854725065,4.88255216,135.43,135.4,0.67381949]
[1767854725268,2.93491686,135.44,135.4,0.67381949]
[1767854725475,8.08092389,135.46,135.42,0.67381949]